[Event "Tata Steel-A 80th"]
[Site "Wijk aan Zee"]
[Date "2018.01.15"]
[Round "3"]
[White "So, Wesley"]
[Black "Karjakin, Sergey"]
[Result "1/2-1/2"]
[ECO "D38"]
[WhiteElo "2792"]
[BlackElo "2753"]
[PlyCount "92"]
[EventDate "2018.01.13"]
[EventType "tourn"]
[EventRounds "13"]
[EventCountry "NED"]
[EventCategory "20"]
[SourceTitle "CBM 183"]
[Source "ChessBase"]
[SourceDate "2018.03.14"]
[SourceVersion "1"]
[SourceVersionDate "2018.03.14"]
[SourceQuality "1"]
[TimeControl "40/6000+30:20/3000+30:900+30"]

1. d4 {[%emt 0:00:00]} Nf6 {[%emt 0:00:06]} 2. Nf3 {[%emt 0:00:30]} d5 {
[%emt 0:00:10]} 3. c4 {[%emt 0:00:51]} e6 {[%emt 0:00:07]} 4. Nc3 {[%emt 0:01:
32]} Bb4 {[%emt 0:00:14]} 5. cxd5 {[%emt 0:02:37]} exd5 {[%emt 0:00:14]} 6. Bg5
{[%emt 0:00:04]} O-O {[%emt 0:00:49]} 7. e3 {[%emt 0:05:35]} h6 {[%emt 0:00:16]
} 8. Bh4 {[%emt 0:02:05]} Bf5 {[%emt 0:00:12]} 9. Qb3 {[%emt 0:01:43]} Bxc3+ {
[%emt 0:00:23]} 10. bxc3 {[%emt 0:00:06]} Nbd7 {[%emt 0:02:25]} 11. Be2 {
[%emt 0:01:30]} c5 {[%emt 0:01:03]} 12. dxc5 {[%emt 0:00:06]} g5 {[%emt 0:03:
28]} 13. Nd4 {[%emt 0:10:50]} Bg6 {[%emt 0:09:29]} 14. c6 {[%emt 0:02:44]} bxc6
{[%emt 0:08:29]} 15. Nxc6 {[%emt 0:02:28]} Qe8 {[%emt 0:00:15]} 16. Bg3 {
[%emt 0:00:21]} Nc5 {[%emt 0:03:18]} 17. Qb5 {[%emt 0:00:14]} Nfe4 {[%emt 0:10:
56]} 18. O-O {[%emt 0:16:37]} Rc8 {[%emt 0:06:26]} 19. Nd4 {[%emt 0:04:04]}
Nxc3 {[%emt 0:00:38]} 20. Qa5 {[%emt 0:02:00]} Nxe2+ {[%emt 0:02:23]} 21. Nxe2
{[%emt 0:00:05]} Qa4 {[%emt 0:00:07]} 22. Qxa4 {[%emt 0:04:07]} Nxa4 {[%emt 0:
00:01]} 23. Rfd1 {[%emt 0:00:12]} Rfd8 {[%emt 0:05:40]} 24. Be5 {[%emt 0:00:43]
} Re8 {[%emt 0:03:57]} 25. Bd4 {[%emt 0:09:34]} Rc2 {[%emt 0:00:47]} 26. Kf1 {
[%emt 0:00:53]} a6 {[%emt 0:14:20]} 27. h4 {[%emt 0:05:18]} gxh4 {[%emt 0:10:
16]} 28. Nf4 {[%emt 0:04:48]} Nb2 {[%emt 0:00:21]} 29. Rdc1 {[%emt 0:08:44]}
Rxc1+ {[%emt 0:00:12]} 30. Rxc1 {[%emt 0:00:04]} Nd3 {[%emt 0:00:06]} 31. Nxd3
{[%emt 0:02:05]} Bxd3+ {[%emt 0:00:05]} 32. Kg1 {[%emt 0:00:02]} Bc4 {[%emt 0:
00:15]} 33. a3 {[%emt 0:00:39]} Rb8 {[%emt 0:00:09]} 34. Kh2 {[%emt 0:00:05]}
Rb3 {[%emt 0:00:18]} 35. Ra1 {[%emt 0:03:19]} Rd3 {[%emt 0:02:29]} 36. Kh3 {
[%emt 0:03:09]} Rd2 {[%emt 0:01:02]} 37. f3 {[%emt 0:00:14]} Bd3 {[%emt 0:00:
25]} 38. Rg1 {[%emt 0:01:11]} Bc2 {[%emt 0:00:08]} 39. Kxh4 {[%emt 0:00:39]}
Rd1 {[%emt 0:00:05]} 40. Rxd1 {[%emt 0:00:00]} Bxd1 {[%emt 0:00:03]} 41. Kg4 {
[%emt 0:01:04]} Be2 {[%emt 0:00:15]} 42. Kf5 {[%emt 0:01:19]} h5 {[%emt 0:00:
17]} 43. Kg5 {[%emt 0:00:17]} Bf1 {[%emt 0:00:05]} 44. g3 {[%emt 0:00:08]} Be2
{[%emt 0:00:06]} 45. e4 {[%emt 0:00:06]} Bxf3 {[%emt 0:00:04]} 46. exd5 {
[%emt 0:00:02]} Bxd5 1/2-1/2

[Event "Tata Steel-A 80th"]
[Site "Wijk aan Zee"]
[Date "2018.01.15"]
[Round "3"]
[White "Svidler, Peter"]
[Black "Giri, Anish"]
[Result "1/2-1/2"]
[ECO "C48"]
[WhiteElo "2768"]
[BlackElo "2752"]
[PlyCount "42"]
[EventDate "2018.01.13"]
[EventType "tourn"]
[EventRounds "13"]
[EventCountry "NED"]
[EventCategory "20"]
[SourceTitle "CBM 183"]
[Source "ChessBase"]
[SourceDate "2018.03.14"]
[SourceVersion "1"]
[SourceVersionDate "2018.03.14"]
[SourceQuality "1"]
[TimeControl "40/6000+30:20/3000+30:900+30"]

1. e4 {[%emt 0:00:00]} e5 {[%emt 0:00:04]} 2. Nf3 {[%emt 0:00:00]} Nc6 {
[%emt 0:00:29]} 3. Bb5 {[%emt 0:00:03]} Nf6 {[%emt 0:00:04]} 4. Nc3 {[%emt 0:
00:19]} Nd4 {[%emt 0:00:27]} 5. Bc4 {[%emt 0:03:54]} Bc5 {[%emt 0:00:48]} 6. d3
{[%emt 0:03:14]} d6 {[%emt 0:03:13]} 7. Na4 {[%emt 0:27:27]} b5 {[%emt 0:00:21]
} 8. Nxd4 {[%emt 0:03:30]} bxc4 {[%emt 0:00:07]} 9. Ne2 {[%emt 0:12:30]} cxd3 {
[%emt 0:14:03]} 10. Qxd3 {[%emt 0:00:27]} Bb4+ {[%emt 0:00:38]} 11. c3 {
[%emt 0:02:35]} Qd7 {[%emt 0:26:10]} 12. b3 {[%emt 0:14:25]} Ba5 {[%emt 0:00:
08]} 13. O-O {[%emt 0:01:31]} Bb7 {[%emt 0:04:56]} 14. f3 {[%emt 0:01:29]} Bc6
{[%emt 0:03:36]} 15. Qa6 {[%emt 0:00:29]} Bb6+ {[%emt 0:01:11]} 16. Nxb6 {
[%emt 0:00:04]} axb6 {[%emt 0:00:06]} 17. Qd3 {[%emt 0:00:04]} d5 {[%emt 0:09:
28]} 18. exd5 {[%emt 0:00:18]} Qxd5 {[%emt 0:00:11]} 19. Rd1 {[%emt 0:10:20]}
Qxd3 {[%emt 0:02:09]} 20. Rxd3 {[%emt 0:00:09]} O-O {[%emt 0:00:12]} 21. c4 {
[%emt 0:08:54]} Rfe8 {[%emt 0:01:44]} 1/2-1/2

[Event "Tata Steel-A 80th"]
[Site "Wijk aan Zee"]
[Date "2018.01.16"]
[Round "4"]
[White "Caruana, Fabiano"]
[Black "So, Wesley"]
[Result "1/2-1/2"]
[ECO "E46"]
[WhiteElo "2811"]
[BlackElo "2792"]
[PlyCount "96"]
[EventDate "2018.01.13"]
[EventType "tourn"]
[EventRounds "13"]
[EventCountry "NED"]
[EventCategory "20"]
[SourceTitle "CBM 183"]
[Source "ChessBase"]
[SourceDate "2018.03.14"]
[SourceVersion "1"]
[SourceVersionDate "2018.03.14"]
[SourceQuality "1"]
[TimeControl "40/6000+30:20/3000+30:900+30"]

1. d4 {[%emt 0:00:00]} Nf6 {[%emt 0:00:30]} 2. c4 {[%emt 0:00:00]} e6 {[%emt 0:
00:07]} 3. Nc3 {[%emt 0:00:00]} Bb4 {[%emt 0:00:05]} 4. e3 {[%emt 0:00:00]} O-O
{[%emt 0:04:31]} 5. Nge2 {[%emt 0:00:02]} d5 {[%emt 0:05:27]} 6. a3 {[%emt 0:
00:14]} Be7 {[%emt 0:00:04]} 7. cxd5 {[%emt 0:00:08]} exd5 {[%emt 0:00:03]} 8.
Nf4 {[%emt 0:00:08]} Re8 {[%emt 0:05:14]} 9. Bd3 {[%emt 0:00:59]} Bd6 {[%emt 0:
03:31]} 10. O-O {[%emt 0:01:27]} Bxf4 {[%emt 0:00:05]} 11. exf4 {[%emt 0:00:06]
} Nc6 {[%emt 0:00:03]} 12. Be3 {[%emt 0:00:47]} Ne7 {[%emt 0:00:08]} 13. Qc2 {
[%emt 0:12:07]} g6 {[%emt 0:00:51]} 14. f3 {[%emt 0:00:15]} Bf5 {[%emt 0:01:41]
} 15. g4 {[%emt 0:05:46]} Bxd3 {[%emt 0:17:41]} 16. Qxd3 {[%emt 0:00:10]} Kg7 {
[%emt 0:04:14]} 17. Rae1 {[%emt 0:04:17]} Qd7 {[%emt 0:04:01]} 18. Bf2 {
[%emt 0:14:03]} h5 {[%emt 0:02:54]} 19. h3 {[%emt 0:00:42]} c6 {[%emt 0:08:18]}
20. Ne2 {[%emt 0:15:06]} hxg4 {[%emt 0:10:33]} 21. hxg4 {[%emt 0:00:15]} Nfg8 {
[%emt 0:08:42]} 22. Bh4 {[%emt 0:10:46]} f5 {[%emt 0:02:13]} 23. Ng3 {[%emt 0:
02:09]} Rf8 {[%emt 0:08:42]} 24. Re5 {[%emt 0:02:02]} Rf7 {[%emt 0:03:11]} 25.
Qe2 {[%emt 0:07:07]} Kf8 {[%emt 0:01:51]} 26. Re6 {[%emt 0:10:36]} Rc8 {
[%emt 0:06:49]} 27. b4 {[%emt 0:06:07]} b6 {[%emt 0:00:05]} 28. Re1 {[%emt 0:
01:51]} c5 {[%emt 0:00:20]} 29. bxc5 {[%emt 0:00:41]} bxc5 {[%emt 0:00:02]} 30.
dxc5 {[%emt 0:00:06]} Qc7 {[%emt 0:01:33]} 31. Kg2 {[%emt 0:09:11]} Qxc5 {
[%emt 0:02:24]} 32. Qe5 {[%emt 0:00:22]} fxg4 {[%emt 0:01:57]} 33. fxg4 {
[%emt 0:00:05]} d4 {[%emt 0:00:07]} 34. Qxc5 {[%emt 0:05:33]} Rxc5 {[%emt 0:00:
01]} 35. Ne4 {[%emt 0:01:59]} Rc2+ {[%emt 0:00:12]} 36. Kf3 {[%emt 0:00:33]}
Nd5 {[%emt 0:03:35]} 37. Bg5 {[%emt 0:00:09] Caruana missed a chance with 37.
Rd6, when after 37...Nxf4, he would have 38.Ng5 and black's knight is lost.
Instead after 37.Bg5 the game ended in a draw ten moves later.} (37. Rd6 Nxf4
38. Ng5 {[%csl Rf7]}) 37... Rh7 {[%emt 0:04:45]} 38. Nd6 {[%emt 0:01:04]} d3 {
[%emt 0:00:49]} 39. f5 {[%emt 0:01:30]} Rh3+ {[%emt 0:02:02]} 40. Ke4 {[%emt 0:
00:00]} d2 {[%emt 0:00:24]} 41. Rf1 {[%emt 0:13:51]} d1=Q {[%emt 0:24:26]} 42.
Rxd1 {[%emt 0:01:25]} Nc3+ {[%emt 0:00:15]} 43. Kd4 {[%emt 0:00:25]} Nxd1 {
[%emt 0:00:18]} 44. f6 {[%emt 0:12:46]} Nxf6 {[%emt 0:00:31]} 45. Bxf6 {
[%emt 0:00:30]} Rd2+ {[%emt 0:00:18]} 46. Kc5 {[%emt 0:00:05]} Rc2+ {[%emt 0:
08:05]} 47. Kd4 {[%emt 0:03:48]} Rd2+ {[%emt 0:00:09]} 48. Kc5 {[%emt 0:00:02]}
Rc2+ {[%emt 0:00:03]} 1/2-1/2

[Event "Tata Steel-A 80th"]
[Site "Wijk aan Zee"]
[Date "2018.01.16"]
[Round "4"]
[White "Giri, Anish"]
[Black "Carlsen, Magnus"]
[Result "1/2-1/2"]
[ECO "C18"]
[WhiteElo "2752"]
[BlackElo "2834"]
[PlyCount "61"]
[EventDate "2018.01.13"]
[EventType "tourn"]
[EventRounds "13"]
[EventCountry "NED"]
[EventCategory "20"]
[SourceTitle "CBM 183"]
[Source "ChessBase"]
[SourceDate "2018.03.14"]
[SourceVersion "1"]
[SourceVersionDate "2018.03.14"]
[SourceQuality "1"]
[TimeControl "40/6000+30:20/3000+30:900+30"]

1. e4 {[%emt 0:00:00]} e6 {[%emt 0:00:23]} 2. d4 {[%emt 0:00:00]} d5 {[%emt 0:
00:07]} 3. Nc3 {[%emt 0:00:00]} Bb4 {[%emt 0:00:08]} 4. e5 {[%emt 0:00:00]} Ne7
{[%emt 0:00:11]} 5. a3 {[%emt 0:00:27]} Bxc3+ {[%emt 0:00:10]} 6. bxc3 {
[%emt 0:00:03]} c5 {[%emt 0:00:15]} 7. Qg4 {[%emt 0:00:52]} cxd4 {[%emt 0:00:
09]} 8. Qxg7 {[%emt 0:03:29]} Rg8 {[%emt 0:00:09]} 9. Qxh7 {[%emt 0:00:03]} Qc7
{[%emt 0:00:17]} 10. Ne2 {[%emt 0:00:15]} Nbc6 {[%emt 0:00:23]} 11. f4 {
[%emt 0:00:19]} dxc3 {[%emt 0:00:08]} 12. Nxc3 {[%emt 0:05:59]} Nd4 {[%emt 0:
00:25]} 13. Bb2 {[%emt 0:09:42]} Bd7 {[%emt 0:02:15]} 14. O-O-O {[%emt 0:00:58]
} Qb6 {[%emt 0:00:45]} 15. Qd3 {[%emt 0:13:31]} Ndf5 {[%emt 0:00:19]} 16. Rd2 {
[%emt 0:01:11]} Rc8 {[%emt 0:06:56]} 17. g3 {[%emt 0:03:47]} Ne3 {[%emt 0:10:
51]} 18. Ne4 {[%emt 0:14:49]} Rxc2+ {[%emt 0:07:35]} 19. Rxc2 {[%emt 0:00:54]}
dxe4 {[%emt 0:00:03]} 20. Qxe4 {[%emt 0:05:59]} Nxc2 {[%emt 0:01:38]} 21. Qxc2
{[%emt 0:00:07]} Bc6 {[%emt 0:01:54]} 22. Bg2 {[%emt 0:00:20]} Bxg2 {[%emt 0:
00:29]} 23. Qxg2 {[%emt 0:00:05]} Nd5 {[%emt 0:00:07]} 24. Kb1 {[%emt 0:09:31]}
Nc3+ {[%emt 0:00:31]} 25. Ka1 {[%emt 0:00:24]} Qb3 {[%emt 0:00:28]} 26. Bxc3 {
[%emt 0:00:05]} Qxa3+ {[%emt 0:00:09]} 27. Kb1 {[%emt 0:00:18]} Qxc3 {[%emt 0:
00:04]} 28. Rc1 {[%emt 0:10:34]} Qb4+ {[%emt 0:00:15]} 29. Qb2 {[%emt 0:00:54]}
Qe4+ {[%emt 0:00:09]} 30. Qc2 {[%emt 0:00:05]} Qb4+ {[%emt 0:00:11]} 31. Qb2 {
[%emt 0:00:05]} 1/2-1/2

[Event "Tata Steel-A 80th"]
[Site "Wijk aan Zee"]
[Date "2018.01.16"]
[Round "4"]
[White "Karjakin, Sergey"]
[Black "Mamedyarov, Shakhriyar"]
[Result "1/2-1/2"]
[ECO "C42"]
[WhiteElo "2753"]
[BlackElo "2804"]
[PlyCount "70"]
[EventDate "2018.01.13"]
[EventType "tourn"]
[EventRounds "13"]
[EventCountry "NED"]
[EventCategory "20"]
[SourceTitle "CBM 183"]
[Source "ChessBase"]
[SourceDate "2018.03.14"]
[SourceVersion "1"]
[SourceVersionDate "2018.03.14"]
[SourceQuality "1"]
[TimeControl "40/6000+30:20/3000+30:900+30"]

1. e4 {[%emt 0:00:00]} e5 {[%emt 0:00:08]} 2. Nf3 {[%emt 0:00:00]} Nf6 {
[%emt 0:00:13]} 3. Nxe5 {[%emt 0:00:01]} d6 {[%emt 0:00:09]} 4. Nf3 {[%emt 0:
00:05]} Nxe4 {[%emt 0:00:07]} 5. d4 {[%emt 0:00:40]} d5 {[%emt 0:00:14]} 6. Bd3
{[%emt 0:00:06]} Nc6 {[%emt 0:00:35]} 7. O-O {[%emt 0:00:26]} Be7 {[%emt 0:00:
12]} 8. Nbd2 {[%emt 0:01:27]} Bf5 {[%emt 0:06:20]} 9. Re1 {[%emt 0:00:18]} Nxd2
{[%emt 0:02:04]} 10. Qxd2 {[%emt 0:00:06]} Bxd3 {[%emt 0:05:51]} 11. Qxd3 {
[%emt 0:00:06]} O-O {[%emt 0:00:09]} 12. c3 {[%emt 0:03:36]} h6 {[%emt 0:14:49]
} 13. Bf4 {[%emt 0:05:11]} Bd6 {[%emt 0:00:36]} 14. Bg3 {[%emt 0:04:35]} Qd7 {
[%emt 0:07:24]} 15. Re3 {[%emt 0:14:01]} Rfe8 {[%emt 0:04:01]} 16. Rae1 {
[%emt 0:00:16]} Rxe3 {[%emt 0:05:09]} 17. Rxe3 {[%emt 0:00:14]} a6 {[%emt 0:04:
29]} 18. Bxd6 {[%emt 0:12:50]} Qxd6 {[%emt 0:00:11]} 19. Nh4 {[%emt 0:00:04]}
Qd7 {[%emt 0:16:16]} 20. Qf5 {[%emt 0:05:33]} Rd8 {[%emt 0:00:21]} 21. Qxd7 {
[%emt 0:10:28]} Rxd7 {[%emt 0:00:12]} 22. Re8+ {[%emt 0:00:04]} Kh7 {[%emt 0:
00:05]} 23. Rc8 {[%emt 0:00:04]} Ne7 {[%emt 0:11:42]} 24. Rb8 {[%emt 0:00:29]}
c5 {[%emt 0:00:05]} 25. Nf3 {[%emt 0:08:29]} Nc6 {[%emt 0:00:12]} 26. Rc8 {
[%emt 0:00:04]} cxd4 {[%emt 0:03:29]} 27. Nxd4 {[%emt 0:00:07]} Nxd4 {[%emt 0:
00:14]} 28. cxd4 {[%emt 0:00:02]} Re7 {[%emt 0:04:39]} 29. Kf1 {[%emt 0:00:10]}
Re4 {[%emt 0:00:05]} 30. Rc7 {[%emt 0:00:06]} b5 {[%emt 0:00:12]} 31. Rxf7 {
[%emt 0:00:50]} Rxd4 {[%emt 0:00:08]} 32. Ke2 {[%emt 0:00:15]} Ra4 {[%emt 0:01:
33]} 33. a3 {[%emt 0:00:09]} Rc4 {[%emt 0:01:30]} 34. Kd3 {[%emt 0:02:18]} b4 {
[%emt 0:00:46]} 35. axb4 {[%emt 0:02:12]} Rxb4 {[%emt 0:00:08]} 1/2-1/2

[Event "Tata Steel-A 80th"]
[Site "Wijk aan Zee"]
[Date "2018.01.17"]
[Round "5"]
[White "Anand, Viswanathan"]
[Black "Wei, Yi"]
[Result "1/2-1/2"]
[ECO "C42"]
[WhiteElo "2767"]
[BlackElo "2743"]
[PlyCount "58"]
[EventDate "2018.01.13"]
[EventType "tourn"]
[EventRounds "13"]
[EventCountry "NED"]
[EventCategory "20"]
[SourceTitle "CBM 183"]
[Source "ChessBase"]
[SourceDate "2018.03.14"]
[SourceVersion "1"]
[SourceVersionDate "2018.03.14"]
[SourceQuality "1"]
[TimeControl "40/6000+30:20/3000+30:900+30"]

1. e4 {[%emt 0:00:00]} e5 {[%emt 0:00:12]} 2. Nf3 {[%emt 0:00:00]} Nf6 {
[%emt 0:00:15]} 3. Nxe5 {[%emt 0:00:00]} d6 {[%emt 0:00:07]} 4. Nf3 {[%emt 0:
00:02]} Nxe4 {[%emt 0:00:09]} 5. d4 {[%emt 0:00:14]} d5 {[%emt 0:00:09]} 6. Bd3
{[%emt 0:00:12]} Bf5 {[%emt 0:00:24]} 7. O-O {[%emt 0:00:15]} Be7 {[%emt 0:00:
08]} 8. Re1 {[%emt 0:00:19]} O-O {[%emt 0:00:17]} 9. c4 {[%emt 0:00:14]} Nc6 {
[%emt 0:00:26]} 10. cxd5 {[%emt 0:00:27]} Qxd5 {[%emt 0:00:08]} 11. Nc3 {
[%emt 0:00:27]} Nxc3 {[%emt 0:00:10]} 12. bxc3 {[%emt 0:00:05]} Rae8 {[%emt 0:
01:21]} 13. Bf4 {[%emt 0:00:15]} Bxd3 {[%emt 0:00:45]} 14. Qxd3 {[%emt 0:00:29]
} Bd6 {[%emt 0:00:14]} 15. c4 {[%emt 0:13:52]} Qh5 {[%emt 0:00:15]} 16. Bxd6 {
[%emt 0:06:48]} cxd6 {[%emt 0:00:15]} 17. Qa3 {[%emt 0:00:21]} Qa5 {[%emt 0:02:
19]} 18. Qxd6 {[%emt 0:07:23]} Rxe1+ {[%emt 0:00:36]} 19. Rxe1 {[%emt 0:00:27]}
Rd8 {[%emt 0:00:07]} 20. Re3 {[%emt 0:00:58]} h6 {[%emt 0:02:02]} 21. Qf4 {
[%emt 0:01:22]} Qxa2 {[%emt 0:00:12]} 22. d5 {[%emt 0:02:17]} Na5 {[%emt 0:00:
50]} 23. Qc7 {[%emt 0:16:04]} Qb1+ {[%emt 0:00:17]} 24. Re1 {[%emt 0:00:07]}
Qb6 {[%emt 0:00:06]} 25. Re7 {[%emt 0:00:10]} Qxc7 {[%emt 0:00:09]} 26. Rxc7 {
[%emt 0:00:04]} b5 {[%emt 0:00:06]} 27. cxb5 {[%emt 0:00:05]} Rxd5 {[%emt 0:00:
06]} 28. h3 {[%emt 0:00:07]} Rxb5 {[%emt 0:00:06]} 29. Rxa7 {[%emt 0:00:07]}
Nc6 {[%emt 0:00:06]} 1/2-1/2

[Event "Tata Steel-A 80th"]
[Site "Wijk aan Zee"]
[Date "2018.01.17"]
[Round "5"]
[White "Carlsen, Magnus"]
[Black "Kramnik, Vladimir"]
[Result "1/2-1/2"]
[ECO "C54"]
[WhiteElo "2834"]
[BlackElo "2787"]
[PlyCount "126"]
[EventDate "2018.01.13"]
[EventType "tourn"]
[EventRounds "13"]
[EventCountry "NED"]
[EventCategory "20"]
[SourceTitle "CBM 183"]
[Source "ChessBase"]
[SourceDate "2018.03.14"]
[SourceVersion "1"]
[SourceVersionDate "2018.03.14"]
[SourceQuality "1"]
[TimeControl "40/6000+30:20/3000+30:900+30"]

{Especially dramatic was the match between Magnus Carlsen and Vladimir Kramnik.
In an Italian game Kramnik reached easy equality with Black} 1. e4 {[%emt 0:00:
00]} e5 {[%emt 0:00:09]} 2. Nf3 {[%emt 0:00:00]} Nc6 {[%emt 0:00:05]} 3. Bc4 {
[%emt 0:00:00]} Bc5 {[%emt 0:00:16]} 4. O-O {[%emt 0:00:01]} Nf6 {[%emt 0:00:
22]} 5. d3 {[%emt 0:00:07]} d6 {[%emt 0:01:10]} 6. c3 {[%emt 0:00:19]} a6 {
[%emt 0:00:11]} 7. a4 {[%emt 0:00:17]} O-O {[%emt 0:01:12]} 8. h3 {[%emt 0:00:
18]} h6 {[%emt 0:02:17]} 9. Re1 {[%emt 0:02:41]} Re8 {[%emt 0:00:58]} 10. Nbd2
{[%emt 0:03:42]} Be6 {[%emt 0:01:14]} 11. Bxe6 {[%emt 0:01:26]} Rxe6 {[%emt 0:
00:25]} 12. b4 {[%emt 0:00:06]} Ba7 {[%emt 0:00:04]} 13. Qc2 {[%emt 0:06:43]}
Qd7 {[%emt 0:00:13]} 14. Nf1 {[%emt 0:06:09]} d5 {[%emt 0:01:00]} 15. Ng3 {
[%emt 0:14:26]} Rd8 {[%emt 0:04:39]} 16. exd5 {[%emt 0:16:32]} Qxd5 {[%emt 0:
14:05]} 17. Be3 {[%emt 0:00:09]} Qxd3 {[%emt 0:19:40]} 18. Qxd3 {[%emt 0:00:07]
} Rxd3 {[%emt 0:00:05]} 19. Bxa7 {[%emt 0:09:11]} Nxa7 {[%emt 0:01:24]} 20.
Nxe5 {[%emt 0:00:04]} Rd5 {[%emt 0:02:26]} 21. Ng4 {[%emt 0:00:20]} Nxg4 {
[%emt 0:06:14]} 22. Rxe6 {[%emt 0:00:04]} fxe6 {[%emt 0:00:09]} 23. hxg4 {
[%emt 0:00:04]} a5 {[%emt 0:01:58]} 24. f3 {[%emt 0:02:26]} Nc6 {[%emt 0:07:20]
} 25. Rb1 {[%emt 0:07:16]} b6 {[%emt 0:08:27]} 26. Ne4 {[%emt 0:00:46]} axb4 {
[%emt 0:04:39]} 27. cxb4 {[%emt 0:00:12]} Rd4 {[%emt 0:00:03]} 28. b5 $6 {
[%emt 0:01:15] After one "impulsive" move (28.b5) — as Carlsen said after
the game — the Norwegian even came under pressure and had to save himself in
a rook ending, where black had two pawns extra — although doubled on the
g-line. With only one g-pawn it would be a theoretical draw, but the second
g-pawn made the matter "tricky" to quote Carlsen. But Carlsen defended himself
precisely and saved the draw} Ne5 {[%emt 0:01:27]} 29. Rc1 {[%emt 0:11:02]}
Nxg4 {[%emt 0:07:22]} 30. fxg4 {[%emt 0:02:50]} Rxe4 {[%emt 0:00:35]} 31. Rxc7
{[%emt 0:00:09]} Rxa4 {[%emt 0:02:44]} 32. Rc6 {[%emt 0:02:10]} Kf7 {[%emt 0:
02:36]} 33. g5 {[%emt 0:01:35]} hxg5 {[%emt 0:00:22]} 34. Rxb6 {[%emt 0:00:02]}
Rb4 {[%emt 0:01:28]} 35. Rb8 {[%emt 0:04:45]} Kf6 {[%emt 0:04:54]} 36. b6 {
[%emt 0:00:21]} Ke5 {[%emt 0:02:25]} 37. Kh2 {[%emt 0:09:23]} Rb3 {[%emt 0:00:
59]} 38. g4 {[%emt 0:08:53]} Kf4 {[%emt 0:07:48]} 39. b7 {[%emt 0:00:04]} Kxg4
{[%emt 0:02:10]} 40. Re8 {[%emt 0:00:00]} Rxb7 {[%emt 0:01:14]} 41. Rxe6 {
[%emt 0:01:39]} Rb2+ {[%emt 0:08:12]} 42. Kg1 {[%emt 0:00:03]} Kf3 {[%emt 0:02:
35]} 43. Ra6 {[%emt 0:00:44]} Rg2+ {[%emt 0:04:59]} 44. Kh1 {[%emt 0:00:52]}
Re2 {[%emt 0:02:48]} 45. Kg1 {[%emt 0:08:27]} g4 {[%emt 0:02:28]} 46. Ra1 {
[%emt 0:01:24]} Re8 {[%emt 0:08:00]} 47. Rb1 {[%emt 0:03:54]} g3 {[%emt 0:09:
01]} 48. Rb3+ {[%emt 0:00:40]} Re3 {[%emt 0:03:29]} 49. Rb1 {[%emt 0:00:02]}
Re8 {[%emt 0:04:24]} 50. Rb3+ {[%emt 0:00:05]} Kg4 {[%emt 0:00:06]} 51. Rb5 {
[%emt 0:00:11]} Re1+ {[%emt 0:05:22]} 52. Kg2 {[%emt 0:00:01]} Re2+ {[%emt 0:
00:18]} 53. Kg1 {[%emt 0:00:02]} g5 {[%emt 0:05:15]} 54. Rb8 {[%emt 0:00:12]}
Re1+ {[%emt 0:00:24]} 55. Kg2 {[%emt 0:00:03]} Re2+ {[%emt 0:00:04]} 56. Kg1 {
[%emt 0:00:10]} Ra2 {[%emt 0:00:42]} 57. Rc8 {[%emt 0:00:10]} Ra1+ {[%emt 0:01:
28]} 58. Kg2 {[%emt 0:00:02]} Ra2+ {[%emt 0:00:04]} 59. Kg1 {[%emt 0:00:07]} g2
{[%emt 0:02:18]} 60. Rc4+ {[%emt 0:00:00]} Kh3 {[%emt 0:00:53]} 61. Rc3+ {
[%emt 0:00:18]} Kh4 {[%emt 0:00:09]} 62. Rc4+ {[%emt 0:00:08]} g4 {[%emt 0:00:
35]} 63. Rc3 {[%emt 0:00:04]} Kh5 1/2-1/2

[Event "Tata Steel-A 80th"]
[Site "Wijk aan Zee"]
[Date "2018.01.17"]
[Round "5"]
[White "Jones, Gawain C B"]
[Black "Giri, Anish"]
[Result "1/2-1/2"]
[ECO "B14"]
[WhiteElo "2640"]
[BlackElo "2752"]
[PlyCount "49"]
[EventDate "2018.01.13"]
[EventType "tourn"]
[EventRounds "13"]
[EventCountry "NED"]
[EventCategory "20"]
[SourceTitle "CBM 183"]
[Source "ChessBase"]
[SourceDate "2018.03.14"]
[SourceVersion "1"]
[SourceVersionDate "2018.03.14"]
[SourceQuality "1"]
[TimeControl "40/6000+30:20/3000+30:900+30"]

1. e4 {[%emt 0:00:00]} c6 {[%emt 0:00:47]} 2. d4 {[%emt 0:00:09]} d5 {[%emt 0:
00:07]} 3. exd5 {[%emt 0:00:38]} cxd5 {[%emt 0:00:27]} 4. c4 {[%emt 0:00:07]}
Nf6 {[%emt 0:02:04]} 5. Nc3 {[%emt 0:00:10]} e6 {[%emt 0:00:51]} 6. Nf3 {
[%emt 0:00:59]} Bb4 {[%emt 0:00:26]} 7. cxd5 {[%emt 0:01:07]} Nxd5 {[%emt 0:00:
27]} 8. Bd2 {[%emt 0:00:07]} O-O {[%emt 0:02:38]} 9. Bd3 {[%emt 0:00:19]} Nc6 {
[%emt 0:00:11]} 10. O-O {[%emt 0:00:08]} Be7 {[%emt 0:00:08]} 11. Nxd5 {
[%emt 0:03:56]} exd5 {[%emt 0:04:02]} 12. h3 {[%emt 0:03:25]} Bf6 {[%emt 0:00:
47]} 13. Bc3 {[%emt 0:07:05]} Be6 {[%emt 0:03:11]} 14. Re1 {[%emt 0:04:45]} g6
{[%emt 0:08:19]} 15. Qd2 {[%emt 0:05:10]} Rc8 {[%emt 0:06:11]} 16. Rac1 {
[%emt 0:08:11]} a6 {[%emt 0:02:17]} 17. Qf4 {[%emt 0:05:26]} Bg7 {[%emt 0:01:
01]} 18. b3 {[%emt 0:08:46]} Qf6 {[%emt 0:01:47]} 19. Qxf6 {[%emt 0:09:26]}
Bxf6 {[%emt 0:02:39]} 20. Ne5 {[%emt 0:00:05]} Be7 {[%emt 0:36:20]} 21. Nxc6 {
[%emt 0:01:46]} Rxc6 {[%emt 0:00:03]} 22. Bd2 {[%emt 0:01:49]} Rfc8 {[%emt 0:
00:21]} 23. Rxc6 {[%emt 0:00:09]} Rxc6 {[%emt 0:00:03]} 24. Rc1 {[%emt 0:00:33]
} Rxc1+ {[%emt 0:00:06]} 25. Bxc1 {[%emt 0:00:04]} 1/2-1/2